fUST/lending_fUST_20250530
["ID","MTS","AMOUNT","RATE_DAILY","PERIOD"]
[363055804,1748562647394,-430.0,0.00021369,2]
[363055806,1748562647407,-766.95,0.00021369,2]
[363055809,1748562647420,-1136.77,0.00021369,2]
[363055811,1748562647433,-524.74,0.00021369,2]
[363055813,1748562647446,-3919.64,0.00021369,2]
[363055816,1748562647461,-430.0,0.00021369,2]
[363055818,1748562647474,-430.0,0.00021369,2]
[363055821,1748562647487,-530.91,0.00021369,2]
[363055823,1748562647499,-507.06,0.00021369,2]
[363055825,1748562647512,-567.14,0.00021369,2]
[363055827,1748562647527,-430.0,0.00021369,2]
[363055830,1748562647541,-1801.94,0.00021369,2]
[363055832,1748562647557,-520.78,0.00021369,2]
[363055835,1748562647569,-430.0,0.00021369,2]
[363055837,1748562647583,-827.03,0.00021369,2]
[363055840,1748562647599,-1636.59,0.00021369,2]
[363055842,1748562647613,-1191.74,0.00021369,2]
[363055845,1748562647625,-1292.84,0.00021369,2]
[363055847,1748562647637,-430.0,0.00021369,2]
[363055849,1748562647649,-2713.56,0.00021369,2]
[363055851,1748562647662,-654.42,0.00021369,2]
[363055854,1748562647676,-430.0,0.00021369,2]
[363055856,1748562647689,-924.53,0.00021369,2]
[363055858,1748562647701,-430.0,0.00021369,2]
[363055861,1748562647715,-430.0,0.00021369,2]
[363055863,1748562647728,-979.01,0.00021369,2]
[363055865,1748562647740,-3002.9,0.00021369,2]
[363055868,1748562647751,-430.0,0.00021369,2]
[363055870,1748562647772,-430.0,0.00021369,2]
[363055872,1748562647789,-572.95,0.00021369,2]
[363055874,1748562647800,-430.0,0.00021369,2]
[363055876,1748562647812,-155.0,0.00021369,2]
[363055878,1748562647823,-1157.6,0.00021369,2]
[363055881,1748562647834,-430.0,0.00021369,2]
[363055883,1748562647845,-430.0,0.00021369,2]
[363055885,1748562647857,-430.0,0.00021369,2]
[363055887,1748562647869,-1083.16,0.00021369,2]
[363055890,1748562647880,-1466.31,0.00021369,2]
[363055892,1748562647891,-430.0,0.00021369,2]
[363055894,1748562647904,-976.99,0.00021369,2]
[363055896,1748562647916,-992.07,0.00021369,2]
[363055898,1748562647927,-430.0,0.00021369,2]
[363055901,1748562647938,-430.0,0.00021369,2]
[363055903,1748562647950,-430.0,0.00021369,2]
[363055905,1748562647960,-430.0,0.00021369,2]
[363055907,1748562647972,-2027.36,0.00021369,2]
[363055909,1748562647983,-488.3,0.00021369,2]
[363055912,1748562647994,-430.0,0.00021369,2]
[363055914,1748562648007,-1861.78,0.00021369,2]
[363055916,1748562648019,-1703.25232935,0.00021383,5]
[363055918,1748562648031,-331.4154804,0.00021507,2]
[363055921,1748562648043,-153.0,0.00021507,2]
[363055923,1748562648054,-162.1868876,0.00021507,2]
[363055925,1748562648066,-572.078714,0.00021507,2]
[363055927,1748562648078,-1703.25232935,0.0002159,5]
[363055930,1748562648090,-591.25,0.00021643,2]
[363055932,1748562648102,-430.0,0.00021643,2]
[363055934,1748562648114,-462.8,0.00021643,2]
[363055936,1748562648128,-462.08,0.00021643,2]
[363055938,1748562648147,-430.0,0.00021643,2]
[363055940,1748562648161,-766.95,0.00021643,2]
[363055942,1748562648174,-1136.77,0.00021643,2]
[363055944,1748562648186,-524.74,0.00021643,2]
[363055947,1748562648201,-3776.4829693,0.00021643,2]
[363055971,1748562648708,-143.1570307,0.00021643,2]
[363055972,1748562648717,-430.0,0.00021643,2]
[363055973,1748562648728,-430.0,0.00021643,2]
[363055974,1748562648737,-530.91,0.00021643,2]
[363055975,1748562648746,-507.06,0.00021643,2]
[363055976,1748562648755,-567.14,0.00021643,2]
[363055977,1748562648764,-430.0,0.00021643,2]
[363055978,1748562648778,-1801.94,0.00021643,2]
[363055979,1748562648788,-520.78,0.00021643,2]
[363055980,1748562648797,-430.0,0.00021643,2]
[363055981,1748562648806,-827.03,0.00021643,2]
[363055982,1748562648815,-1636.59,0.00021643,2]
[363055983,1748562648825,-1191.74,0.00021643,2]
[363055984,1748562648834,-1292.84,0.00021643,2]
[363055985,1748562648842,-430.0,0.00021643,2]
[363055986,1748562648851,-2713.56,0.00021643,2]
[363055987,1748562648860,-360.1649694,0.00021643,2]
[363055988,1748562648872,-294.2550306,0.00021643,2]
[363055989,1748562648881,-157.01705679,0.00021643,2]
[363055990,1748562648892,-272.98294321,0.00021643,2]
[363055991,1748562648902,-924.53,0.00021643,2]
[363055992,1748562648912,-430.0,0.00021643,2]
[363055993,1748562648921,-430.0,0.00021643,2]
[363055994,1748562648931,-979.01,0.00021643,2]
[363055995,1748562648940,-1622.8399943,0.00021643,2]
[363055996,1748562648951,-1380.0600057,0.00021643,2]
[363055997,1748562648961,-335.33646384,0.00021643,2]
[363055998,1748562648972,-94.66353616,0.00021643,2]
[363055999,1748562648982,-430.0,0.00021643,2]
[363056000,1748562648991,-572.95,0.00021643,2]
[363056001,1748562649000,-430.0,0.00021643,2]
[363056002,1748562649010,-1157.6,0.00021643,2]
[363056003,1748562649020,-430.0,0.00021643,2]
[363056005,1748562649030,-430.0,0.00021643,2]
[363056007,1748562649039,-430.0,0.00021643,2]
[363056008,1748562649048,-1083.16,0.00021643,2]
[363056009,1748562649058,-1466.31,0.00021643,2]
[363056010,1748562649068,-430.0,0.00021643,2]
[363056012,1748562649077,-976.99,0.00021643,2]
[363056014,1748562649088,-992.07,0.00021643,2]
[363056015,1748562649097,-430.0,0.00021643,2]
[363056018,1748562649107,-430.0,0.00021643,2]
[363056020,1748562649117,-430.0,0.00021643,2]
[363056022,1748562649126,-430.0,0.00021643,2]
[363056023,1748562649136,-2027.36,0.00021643,2]
[363056025,1748562649145,-488.3,0.00021643,2]
[363056027,1748562649155,-282.0480568,0.00021643,2]
[363056030,1748562649171,-430.0,0.00019178,2]
[363056032,1748562649180,-147.9519432,0.00021643,2]
[363056034,1748562649190,-346.54472714,0.00021643,2]
[363056044,1748562649284,-430.0,0.00019178,2]
[363056046,1748562649293,-430.0,0.00019178,2]
[363056048,1748562649303,-210.47848275,0.00019215,2]
[363056050,1748562649312,-430.0,0.00019452,2]
[363056052,1748562649321,-1515.23527286,0.00021643,2]
[363056054,1748562649332,-1703.25232935,0.00021797,6]
[363056056,1748562649341,-240.54056279,0.000218,2]
[363056058,1748562649350,-591.25,0.00021917,2]
[363056060,1748562649360,-430.0,0.00021917,2]
[363056062,1748562649369,-462.8,0.00021917,2]
[363056064,1748562649378,-462.08,0.00021917,2]
[363056066,1748562649387,-430.0,0.00021917,2]
[363056068,1748562649397,-766.95,0.00021917,2]
[363056070,1748562649406,-1136.77,0.00021917,2]
[363056072,1748562649415,-524.74,0.00021917,2]
[363056074,1748562649424,-699.04778852,0.00021917,2]
[363056076,1748562649435,-1808.05942666,0.00021917,2]
[363056078,1748562649446,-1412.53278482,0.00021917,2]
[363056080,1748562649456,-430.0,0.00021917,2]
[363056082,1748562649465,-430.0,0.00021917,2]
[363056084,1748562649474,-296.41274178,0.00021917,2]
[363056086,1748562649484,-234.49725822,0.00021917,2]
[363056088,1748562649493,-507.06,0.00021917,2]
[363056090,1748562649502,-567.14,0.00021917,2]
[363056092,1748562649511,-414.74511642,0.00021917,2]
[363056094,1748562649522,-1801.94,0.00021917,2]
[363056096,1748562649531,-520.78,0.00021917,2]
[363056098,1748562649540,-430.0,0.00021917,2]
[363056100,1748562649549,-737.273072,0.00021917,2]
[363056105,1748562649581,-89.756928,0.00021917,2]
[363056107,1748562649590,-1636.59,0.00021917,2]
[363056109,1748562649599,-1191.74,0.00021917,2]
[363056111,1748562649609,-1292.84,0.00021917,2]
[363056113,1748562649617,-430.0,0.00021917,2]
[363056115,1748562649627,-2713.56,0.00021917,2]
[363056117,1748562649636,-654.42,0.00021917,2]
[363056119,1748562649645,-430.0,0.00021917,2]
[363056121,1748562649654,-924.53,0.00021917,2]
[363056123,1748562649663,-168.49819971,0.00021917,2]
[363056125,1748562649672,-430.0,0.00021917,2]
[363056127,1748562649682,-979.01,0.00021917,2]
[363056129,1748562649692,-3002.9,0.00021917,2]
[363056131,1748562649702,-430.0,0.00021917,2]
[363056133,1748562649711,-430.0,0.00021917,2]
[363056135,1748562649721,-572.95,0.00021917,2]
[363056137,1748562649730,-430.0,0.00021917,2]
[363056139,1748562649739,-155.0,0.00021917,2]
[363056141,1748562649748,-1157.6,0.00021917,2]
[363056143,1748562649757,-446.1619188,0.00021917,2]
[363056145,1748562649767,-430.0,0.00021917,2]
[363056147,1748562649777,-430.0,0.00021917,2]
[363056149,1748562649786,-1083.16,0.00021917,2]
[363056151,1748562649795,-1466.31,0.00021917,2]
[363056153,1748562649804,-430.0,0.00021917,2]
[363056155,1748562649813,-976.99,0.00021917,2]
[363056157,1748562649822,-992.07,0.00021917,2]
[363056159,1748562649831,-430.0,0.00021917,2]
[363056161,1748562649840,-430.0,0.00021917,2]
[363056163,1748562649850,-430.0,0.00021917,2]
[363056165,1748562649860,-430.0,0.00021917,2]
[363056167,1748562649869,-2027.36,0.00021917,2]
[363056169,1748562649879,-488.3,0.00021917,2]
[363056170,1748562649888,-430.0,0.00021917,2]
[363056171,1748562649898,-1861.78,0.00021917,2]
[363056173,1748562649907,-215.0738,0.00021955,2]
[363056175,1748562649916,-600.0,0.00021973,2]
[363056177,1748562649925,-938.8,0.00022,7]
[363056179,1748562649935,-4374.18,0.00022,7]
[363056181,1748562649944,-212.70147903,0.00022,7]
[363056182,1748562649953,-603.93,0.00022,5]
[363056183,1748562649962,-500.0,0.00022,4]
[363056184,1748562649970,-500.0,0.00022,4]
[363056185,1748562649979,-500.0,0.00022,3]
[363056186,1748562649988,-500.0,0.00022,2]
[363056187,1748562649998,-500.0,0.00022,2]
[363056188,1748562650008,-500.0,0.00022,2]
[363056189,1748562650017,-500.0,0.00022,2]
[363056190,1748562650027,-17258.20929348,0.00022,2]
[363056191,1748562650039,-253.74189733,0.00022,2]
[363056199,1748562650129,-430.0,0.00019178,2]
[363056201,1748562650139,-561.79,0.00019726,2]
[363056203,1748562650148,-38740.13455645,0.00022,2]
[363056206,1748562650159,-461.97081591,0.00022,2]
[363056208,1748562650170,-9311.19718631,0.00022,2]
[363056210,1748562650182,-2829.39222512,0.00022,2]
[363056213,1748562650197,-5671.99719264,0.00022,2]
[363056266,1748562650722,-0.14949366,0.00019178,2]
[363056268,1748562650733,-429.85050634,0.00019178,2]
[363056270,1748562650742,-210.47848275,0.00019352,2]
[363056272,1748562650752,-83.43067291,0.00019452,2]
[363056276,1748562650779,-430.0,0.00019178,2]
[363056278,1748562650788,-325.36224907,0.00019452,2]
[363056281,1748562650808,-21.20707802,0.00019452,2]
[363056283,1748562650817,-430.0,0.00019726,2]
[363056285,1748562650826,-561.79,0.0002,2]
[363056287,1748562650835,-430.0,0.0002,2]
[363056289,1748562650844,-561.79,0.00020273,2]
[363056291,1748562650854,-430.0,0.00020273,2]
[363056293,1748562650863,-561.79,0.00020547,2]
[363056295,1748562650873,-430.0,0.00020547,2]
[363056297,1748562650882,-561.79,0.00020821,2]
[363056299,1748562650892,-430.0,0.00020821,2]
[363056301,1748562650902,-561.79,0.00021095,2]
[363056303,1748562650911,-430.0,0.00021095,2]
[363056305,1748562650921,-561.79,0.00021369,2]
[363056307,1748562650930,-430.0,0.00021369,2]
[363056309,1748562650940,-561.79,0.00021643,2]
[363056311,1748562650949,-25637.52716349,0.00022,2]
[363056313,1748562650958,-5214.52,0.00022,2]
[363056315,1748562650968,-12660.97845086,0.00022,7]
[363056317,1748562650977,-1703.25232935,0.00022003,6]
[363056319,1748562650987,-961.0,0.00022064,2]
[363056320,1748562650996,-2228.0,0.00022064,2]
[363056323,1748562651006,-702.0,0.00022064,2]
[363056324,1748562651015,-151.0,0.000221,5]
[363056326,1748562651025,-591.25,0.00022191,2]
[363056328,1748562651034,-430.0,0.00022191,2]
[363056330,1748562651043,-462.8,0.00022191,2]
[363056332,1748562651053,-462.08,0.00022191,2]
[363056334,1748562651062,-430.0,0.00022191,2]
[363056336,1748562651072,-766.95,0.00022191,2]
[363056338,1748562651081,-524.74,0.00022191,2]
[363056340,1748562651090,-3919.64,0.00022191,2]
[363056342,1748562651100,-430.0,0.00022191,2]
[363056344,1748562651109,-430.0,0.00022191,2]
[363056346,1748562651119,-530.91,0.00022191,2]
[363056348,1748562651128,-507.06,0.00022191,2]
[363056350,1748562651137,-567.14,0.00022191,2]
[363056352,1748562651146,-1801.94,0.00022191,2]
[363056354,1748562651156,-520.78,0.00022191,2]
[363056356,1748562651166,-430.0,0.00022191,2]
[363056358,1748562651175,-827.03,0.00022191,2]
[363056360,1748562651184,-1636.59,0.00022191,2]
[363056362,1748562651194,-1191.74,0.00022191,2]
[363056373,1748562651311,-1292.84,0.00022191,2]
[363056375,1748562651320,-430.0,0.00022191,2]
[363056377,1748562651331,-2713.56,0.00022191,2]
[363056379,1748562651341,-654.42,0.00022191,2]
[363056381,1748562651351,-223.16,0.00022191,2]
[363056382,1748562651360,-924.53,0.00022191,2]
[363056384,1748562651370,-430.0,0.00022191,2]
[363056386,1748562651380,-979.01,0.00022191,2]
[363056388,1748562651390,-3002.9,0.00022191,2]
[363056390,1748562651401,-430.0,0.00022191,2]
[363056392,1748562651410,-430.0,0.00022191,2]
[363056394,1748562651420,-572.95,0.00022191,2]
[363056396,1748562651429,-382.37949059,0.00022191,2]
[363056398,1748562651439,-1157.6,0.00022191,2]
[363056400,1748562651448,-430.0,0.00022191,2]
[363056402,1748562651457,-430.0,0.00022191,2]
[363056404,1748562651466,-1083.16,0.00022191,2]
[363056406,1748562651475,-1466.31,0.00022191,2]
[363056408,1748562651484,-430.0,0.00022191,2]
[363056410,1748562651494,-976.99,0.00022191,2]
[363056412,1748562651504,-992.07,0.00022191,2]
[363056414,1748562651514,-430.0,0.00022191,2]
[363056416,1748562651526,-430.0,0.00022191,2]
[363056418,1748562651536,-430.0,0.00022191,2]
[363056420,1748562651547,-430.0,0.00022191,2]
[363056422,1748562651558,-2027.36,0.00022191,2]
[363056424,1748562651567,-488.3,0.00022191,2]
[363056425,1748562651576,-430.0,0.00022191,2]
[363056427,1748562651586,-1861.78,0.00022191,2]
[363056429,1748562651595,-1703.25232935,0.0002221,6]
[363056431,1748562651605,-600.0,0.0002226,2]
[363056433,1748562651615,-500.0,0.000223,5]
[363056435,1748562651624,-500.0,0.000223,3]
[363056437,1748562651634,-500.0,0.000223,3]
[363056439,1748562651643,-500.0,0.000223,2]
[363056441,1748562651653,-500.0,0.000223,2]
[363056443,1748562651663,-176.3696131,0.00022356,2]
[363056445,1748562651672,-176.3696131,0.00022356,2]
[363056447,1748562651681,-176.3696131,0.00022356,2]
[363056448,1748562651690,-176.3696131,0.00022356,2]
[363056450,1748562651700,-176.3696131,0.00022356,2]
[363056452,1748562651709,-174.2809056,0.00022356,2]
[363056454,1748562651719,-64622.70332458,0.000224,2]
[363056456,1748562651728,-1703.25232935,0.00022417,7]
[363056458,1748562651738,-151.0,0.00022465,7]
[363056460,1748562651747,-155.991799,0.00022465,7]
[363056462,1748562651756,-155.991799,0.00022465,7]
[363056464,1748562651766,-151.0,0.00022465,7]
[363056466,1748562651776,-151.0,0.00022465,7]
[363056468,1748562651786,-591.25,0.00022465,2]
[363056470,1748562651794,-430.0,0.00022465,2]
[363056472,1748562651803,-462.8,0.00022465,2]
[363056473,1748562651813,-462.08,0.00022465,2]
[363056475,1748562651823,-430.0,0.00022465,2]
[363056477,1748562651832,-766.95,0.00022465,2]
[363056479,1748562651841,-524.74,0.00022465,2]
[363056481,1748562651851,-3919.64,0.00022465,2]
[363056483,1748562651860,-430.0,0.00022465,2]
[363056485,1748562651870,-430.0,0.00022465,2]
[363056487,1748562651879,-530.91,0.00022465,2]
[363056489,1748562651889,-507.06,0.00022465,2]
[363056491,1748562651897,-567.14,0.00022465,2]
[363056493,1748562651907,-1801.94,0.00022465,2]
[363056495,1748562651917,-520.78,0.00022465,2]
[363056497,1748562651927,-430.0,0.00022465,2]
[363056499,1748562651936,-827.03,0.00022465,2]
[363056501,1748562651946,-1636.59,0.00022465,2]
[363056503,1748562651956,-1191.74,0.00022465,2]
[363056505,1748562651966,-1292.84,0.00022465,2]
[363056507,1748562651976,-430.0,0.00022465,2]
[363056509,1748562651986,-2713.56,0.00022465,2]
[363056511,1748562651996,-654.42,0.00022465,2]
[363056513,1748562652005,-924.53,0.00022465,2]
[363056515,1748562652015,-430.0,0.00022465,2]
[363056517,1748562652026,-979.01,0.00022465,2]
[363056519,1748562652036,-3002.9,0.00022465,2]
[363056521,1748562652046,-430.0,0.00022465,2]
[363056523,1748562652055,-430.0,0.00022465,2]
[363056525,1748562652065,-572.95,0.00022465,2]
[363056527,1748562652074,-1157.6,0.00022465,2]
[363056529,1748562652084,-430.0,0.00022465,2]
[363056531,1748562652093,-430.0,0.00022465,2]
[363056533,1748562652103,-1083.16,0.00022465,2]
[363056534,1748562652112,-1466.31,0.00022465,2]
[363056536,1748562652121,-430.0,0.00022465,2]
[363056538,1748562652130,-976.99,0.00022465,2]
[363056540,1748562652139,-992.07,0.00022465,2]
[363056542,1748562652149,-430.0,0.00022465,2]
[363056544,1748562652158,-430.0,0.00022465,2]
[363056546,1748562652168,-430.0,0.00022465,2]
[363056548,1748562652178,-430.0,0.00022465,2]
[363056550,1748562652188,-2027.36,0.00022465,2]
[363056552,1748562652198,-488.3,0.00022465,2]
[363056554,1748562652207,-430.0,0.00022465,2]
[363056556,1748562652216,-1861.78,0.00022465,2]
[363056558,1748562652226,-151.0,0.000225,6]
[363056560,1748562652235,-881.9731749,0.00022521,2]
[363056562,1748562652245,-151.0,0.000226,9]
[363056564,1748562652259,-1703.25232935,0.00022624,7]
[363056566,1748562652268,-151.0,0.00022739,7]
[363056568,1748562652278,-580.317717,0.00022739,7]
[363056570,1748562652288,-580.317717,0.00022739,7]
[363056572,1748562652298,-867.579158,0.00022739,7]
[363056574,1748562652308,-867.579158,0.00022739,7]
[363056576,1748562652318,-591.25,0.00022739,2]
[363056578,1748562652327,-430.0,0.00022739,2]
[363056580,1748562652339,-462.8,0.00022739,2]
[363056582,1748562652349,-462.08,0.00022739,2]
[363056584,1748562652359,-430.0,0.00022739,2]
[363056586,1748562652370,-766.95,0.00022739,2]
[363056588,1748562652380,-524.74,0.00022739,2]
[363056590,1748562652390,-3919.64,0.00022739,2]
[363056592,1748562652400,-448.37737344,0.00022739,2]
[363056594,1748562652410,-430.0,0.00022739,2]
[363056596,1748562652420,-530.91,0.00022739,2]
[363056598,1748562652430,-507.06,0.00022739,2]
[363056600,1748562652440,-567.14,0.00022739,2]
[363056602,1748562652450,-1801.94,0.00022739,2]
[363056604,1748562652460,-520.78,0.00022739,2]
[363056606,1748562652470,-449.47725592,0.00022739,2]
[363056608,1748562652479,-827.03,0.00022739,2]
[363056610,1748562652488,-1636.59,0.00022739,2]
[363056612,1748562652498,-1191.74,0.00022739,2]
[363056614,1748562652508,-1292.84,0.00022739,2]
[363056616,1748562652519,-430.0,0.00022739,2]
[363056618,1748562652534,-2713.56,0.00022739,2]
[363056619,1748562652543,-654.42,0.00022739,2]
[363056620,1748562652553,-924.53,0.00022739,2]
[363056621,1748562652563,-430.0,0.00022739,2]
[363056622,1748562652572,-979.01,0.00022739,2]
[363056623,1748562652583,-3002.9,0.00022739,2]
[363056624,1748562652592,-430.0,0.00022739,2]
[363056625,1748562652601,-430.0,0.00022739,2]
[363056626,1748562652610,-572.95,0.00022739,2]
[363056627,1748562652620,-1157.6,0.00022739,2]
[363056628,1748562652629,-430.0,0.00022739,2]
[363056629,1748562652638,-430.0,0.00022739,2]
[363056630,1748562652647,-1083.16,0.00022739,2]
[363056631,1748562652656,-1466.31,0.00022739,2]
[363056632,1748562652666,-430.0,0.00022739,2]
[363056633,1748562652675,-976.99,0.00022739,2]
[363056634,1748562652684,-992.07,0.00022739,2]
[363056635,1748562652693,-430.0,0.00022739,2]
[363056636,1748562652702,-430.0,0.00022739,2]
[363056637,1748562652711,-430.0,0.00022739,2]
[363056638,1748562652720,-419.52121886,0.00022739,2]
[363056639,1748562652729,-2027.36,0.00022739,2]
[363056640,1748562652738,-488.3,0.00022739,2]
[363056641,1748562652747,-430.0,0.00022739,2]
[363056642,1748562652756,-1861.78,0.00022739,2]
[363056643,1748562652767,-240.54056279,0.0002275,2]
[363056644,1748562652779,-167.0,0.00022775,2]
[363056645,1748562652789,-637.0,0.000228,2]
[363056646,1748562652799,-264.92534016,0.00022822,2]
[363056647,1748562652810,-1703.25232935,0.00022831,8]
[363056648,1748562652819,-363.2941736,0.00022849,2]
[363056649,1748562652828,-5214.52,0.000229,2]
[363056650,1748562652837,-1003.206359,0.000229,2]
[363056651,1748562652846,-1419.853394,0.00022929,3]
[363056652,1748562652855,-499.9999989,0.00022929,2]
[363056653,1748562652865,-600.0,0.00022929,3]
[363056654,1748562652874,-264.92534016,0.00022932,2]
[363056655,1748562652882,-36570.75852031,0.00023,2]
[363056656,1748562652892,-300.43940344,0.00023,4]
[363056657,1748562652901,-151.0,0.00023,7]
[363056658,1748562652909,-155.991799,0.00023,7]
[363056660,1748562652919,-155.991799,0.00023,7]
[363056662,1748562652929,-151.0,0.00023,7]
[363056664,1748562652938,-151.0,0.00023,7]
[363056666,1748562652947,-4374.18,0.00023,7]
[363056668,1748562652958,-151.0,0.00023,8]
[363056670,1748562652969,-2470.69893554,0.00023,2]
[363056672,1748562652978,-1089.87738923,0.00023,5]
[363056674,1748562652988,-600.0,0.00023,2]
[363056676,1748562652998,-10000.0,0.00023,5]
[363056678,1748562653007,-803.80191032,0.00023,2]
[363056680,1748562653016,-500.0,0.00023,8]
[363056682,1748562653029,-370.65929463,0.00023008,3]
[363056684,1748562653038,-591.25,0.00023013,2]
[363056686,1748562653048,-430.0,0.00023013,2]
[363056688,1748562653057,-462.8,0.00023013,2]
[363056690,1748562653067,-462.08,0.00023013,2]
[363056692,1748562653076,-430.0,0.00023013,2]
[363056694,1748562653086,-766.95,0.00023013,2]
[363056696,1748562653095,-524.74,0.00023013,2]
[363056698,1748562653104,-3919.64,0.00023013,2]
[363056700,1748562653114,-530.91,0.00023013,2]
[363056702,1748562653123,-430.0,0.00023013,2]
[363056704,1748562653133,-507.06,0.00023013,2]
[363056706,1748562653142,-567.14,0.00023013,2]
[363056708,1748562653152,-1801.94,0.00023013,2]
[363056710,1748562653162,-520.78,0.00023013,2]
[363056712,1748562653172,-827.03,0.00023013,2]
[363056714,1748562653182,-1636.59,0.00023013,2]
[363056716,1748562653191,-1191.74,0.00023013,2]
[363056718,1748562653200,-1292.84,0.00023013,2]
[363056720,1748562653209,-430.0,0.00023013,2]
[363056722,1748562653219,-2713.56,0.00023013,2]
[363056724,1748562653228,-654.42,0.00023013,2]
[363056726,1748562653237,-924.53,0.00023013,2]
[363056728,1748562653247,-430.0,0.00023013,2]
[363056729,1748562653261,-979.01,0.00023013,2]
[363056731,1748562653271,-3002.9,0.00023013,2]
[363056733,1748562653282,-430.0,0.00023013,2]
[363056735,1748562653291,-430.0,0.00023013,2]
[363056737,1748562653302,-572.95,0.00023013,2]
[363056739,1748562653311,-1157.6,0.00023013,2]
[363056741,1748562653321,-430.0,0.00023013,2]
[363056743,1748562653331,-430.0,0.00023013,2]
[363056745,1748562653340,-1083.16,0.00023013,2]
[363056747,1748562653350,-1466.31,0.00023013,2]
[363056749,1748562653359,-430.0,0.00023013,2]
[363056751,1748562653368,-976.99,0.00023013,2]
[363056753,1748562653378,-992.07,0.00023013,2]
[363056756,1748562653387,-430.0,0.00023013,2]
[363056757,1748562653397,-554.27338511,0.00023013,2]
[363056759,1748562653406,-430.0,0.00023013,2]
[363056762,1748562653416,-2027.36,0.00023013,2]
[363056763,1748562653425,-488.3,0.00023013,2]
[363056765,1748562653434,-430.0,0.00023013,2]
[363056767,1748562653443,-1861.78,0.00023013,2]
[363056769,1748562653453,-1703.25232935,0.00023038,8]
[363056771,1748562653462,-264.92534016,0.00023041,2]
[363056773,1748562653472,-264.92534016,0.00023151,2]
[363056775,1748562653481,-151.0,0.00023176,7]
[363056777,1748562653490,-151.0,0.00023176,2]
[363056779,1748562653499,-151.0,0.00023176,7]
[363056781,1748562653508,-151.0,0.00023176,7]
[363056783,1748562653517,-45167.0,0.000232,7]
[363056785,1748562653527,-1703.25232935,0.00023245,8]
[363056786,1748562653536,-264.92534016,0.0002326,2]
[363056788,1748562653546,-151.0,0.00023287,7]
[363056790,1748562653555,-151.0,0.00023287,7]
[363056792,1748562653564,-2004.087032,0.00023287,7]
[363056794,1748562653574,-151.0,0.00023287,7]
[363056796,1748562653583,-166.173139,0.00023287,7]
[363056798,1748562653592,-166.173139,0.00023287,7]
[363056800,1748562653602,-1195.254787,0.00023287,7]
[363056802,1748562653611,-1195.254787,0.00023287,7]
[363056804,1748562653620,-591.25,0.00023287,2]
[363056806,1748562653629,-430.0,0.00023287,2]
[363056808,1748562653639,-462.8,0.00023287,2]
[363056810,1748562653648,-151.0,0.00023287,7]
[363056812,1748562653658,-462.08,0.00023287,2]
[363056814,1748562653667,-286.065708,0.00023287,7]
[363056815,1748562653676,-928.297797,0.00023287,2]
[363056817,1748562653686,-928.297797,0.00023287,2]
[363056819,1748562653695,-192.778592,0.00023287,7]
[363056821,1748562653705,-430.0,0.00023287,2]
[363056823,1748562653715,-192.778592,0.00023287,7]
[363056825,1748562653724,-766.95,0.00023287,2]
[363056827,1748562653734,-524.74,0.00023287,2]